Cogmind - Beta 17 @@@ ROGUE MODE // 2026.07.18 @ 23:01:29 Player: aperiodic Result: Self-destructed Performance ------------- Evolutions (7) 3500 Regions Visited (24) 4800 Robots Destroyed (188) 940 Value Destroyed (7519) 7519 Prototype IDs (74) 1480 Alien Tech Used (6) 1200 Bonus (11028) 11028 TOTAL SCORE: 30467 Bonus ------- High Alert Combat Kills 23 Follower Combat Kills 889 Hunted by Unchained 500 Forged Quantum Companion 2000 Registered with UFD 300 Met Optimus in HQ 500 Destroyed Z-Imprinter 1000 Triggered Deep Caves Wall 500 Met Zhirov 300 Met Warlord at Base 500 MAIN.C Attacked Warlord 500 Warlord Defense Kills 1572 Used Core Reset Matrix 3000 Friendly Fire -556 Cogmind --------- Core Integrity 883/1300 Matter 229/1050 Energy 579/580 System Corruption 3% Temperature Cool (21) Movement Flying (99) Ox1 Location -3/Protoforge Parts ------- > --- POWER (2) -------- Meta Core > --- PROPULSION (6) --- Cooled Nuclear Pulse Thruster Improved Diametric Drive > --- UTILITY (11) ----- Medium Storage Unit Improved Energy Well Concept NT7 Matterbank Advanced Melee Analysis Suite Concept Melee Reflex Suite Concept Weapon Articulator Experimental Armor Integrity Analyzer Experimental Power Shielding (fused) Graphene Brace > --- WEAPON (2) ------- Superquantum Companion > --- INVENTORY (10) --- Zionite Metafield Generator Long-range Sensor Array Experimental Cloaking Device Transdimensional Reconstructor High-powered Transdimensional Reconstructor High-powered Transdimensional Reconstructor High-powered Transdimensional Reconstructor Core Cannon Vortex Lance (30) Peak State ------------ > --- POWER ------------ Zionite Light DM Reactor Meta Core > --- PROPULSION ------- Cooled Nuclear Pulse Thruster Diametric Drive Improved Diametric Drive Improved Diametric Drive Impulse Thruster Array > --- UTILITY ---------- Medium Storage Unit Zionite Metafield Generator Advanced Signal Interpreter Advanced Melee Analysis Suite Experimental Armor Integrity Analyzer Advanced Reaction Control System Experimental Cloaking Device Experimental Power Shielding Graphene Brace Experimental Hacking Suite System Mapper > --- WEAPON ----------- Superquantum Companion Vortex Lance > --- INVENTORY -------- Improved Energy Well Long-range Sensor Array Advanced Transmission Jammer Dimensional Node Initializer Transdimensional Reconstructor High-powered Transdimensional Reconstructor High-powered Transdimensional Reconstructor High-powered Transdimensional Reconstructor Core Cannon [Rating: 180] Favorites ----------- Power Meta Core Engine Makeshift Power Source Power Core Meta Core Reactor Zionite Light DM Reactor Propulsion Nuclear Pulse Array Treads Light Treads Wheel Compact Wheel Flight Unit Nuclear Pulse Array Utility Medium Storage Unit Device Gravity Neutralizer Storage Medium Storage Unit Processor Advanced Signal Interpreter Hackware Makeshift Hacking Suite Protection Enhanced Scrap Shield Weapon Companion Sword Energy Gun Makeshift Laser Energy Cannon Subdweller Beam Cannon Ballistic Gun Battle Rifle Launcher Vortex Catalyst Activator Special Weapon CPS Tube Slashing Weapon Companion Sword Piercing Weapon Vortex Lance Build | -11 -10 -10 -8 -6 -6 -6 -6 -6 -5 -5 -5 -5 -5 -4 -4 -4 -4 -4 -4 -4 -3 -3 -3 -3 ------- Run | Yrd Mat Sub Scr Fac Low Low Zio Dee Pro Fac Upp Upp War Pro Fac Was Fac Upp Upp Zhi Pro Res Qua Frg Slots Evolved 14 | . . . . 8 . . . . . 2 . . . . 2 . . . . . . 2 . . Power 1 | . . . . 1 . . . . . . . . . . . . . . . . . . . . Propulsion 4 | . . . . 3 . . . . . . . . . . . . . . . . . 1 . . Utility 9 | . . . . 4 . . . . . 2 . . . . 2 . . . . . . 1 . . Weapon . | . . . . . . . . . . . . . . . . . . . . . . . . . Parts Attached 160 | 7 10 16 1 39 2 1 3 15 2 15 . 1 10 . 4 . 7 . 1 3 1 4 12 6 Power 9 | 1 1 2 . 2 . 1 . 2 . . . . . . . . . . . . . . . . Engine 6 | 1 1 2 . 1 . 1 . . . . . . . . . . . . . . . . . . Core 1 | . . . . 1 . . . . . . . . . . . . . . . . . . . . Reactor 2 | . . . . . . . . 2 . . . . . . . . . . . . . . . . Propulsion 35 | 2 4 5 . 14 . . . . 1 4 . . 1 . . . 1 . . . . 2 1 . Treads 5 | . 2 2 . 1 . . . . . . . . . . . . . . . . . . . . Leg . | . . . . . . . . . . . . . . . . . . . . . . . . . Wheel 11 | 2 2 3 . 4 . . . . . . . . . . . . . . . . . . . . Hover . | . . . . . . . . . . . . . . . . . . . . . . . . . Flight 19 | . . . . 9 . . . . 1 4 . . 1 . . . 1 . . . . 2 1 . Utility 84 | 2 2 4 . 20 1 . . 11 . 10 . 1 6 . 3 . 6 . . 2 . 2 8 6 Device 37 | 1 1 . . 8 . . . 3 . 6 . 1 3 . 1 . 4 . . 1 . 1 3 4 Storage 12 | 1 1 1 . 1 . . . 2 . . . . . . 1 . . . . . . . 4 1 Processor 7 | . . . . 2 . . . 1 . . . . 1 . . . 2 . . . . . . 1 Hackware 12 | . . . . 5 . . . . . 4 . . . . 1 . . . . . . 1 1 . Protection 16 | . . 3 . 4 1 . . 5 . . . . 2 . . . . . . 1 . . . . Artifact . | . . . . . . . . . . . . . . . . . . . . . . . . . Weapon 32 | 2 3 5 1 3 1 . 3 2 1 1 . . 3 . 1 . . . 1 1 1 . 3 . Energy Gun 4 | 1 1 1 . . . . . 1 . . . . . . . . . . . . . . . . Energy Cannon 3 | . 1 1 . . . . . . . . . . . . . . . . . . . . 1 . Ballistic Gun 4 | 1 . 3 . . . . . . . . . . . . . . . . . . . . . . Ballistic Cannon . | . . . . . . . . . . . . . . . . . . . . . . . . . Launcher 3 | . . . . . . . . . . 1 . . 1 . . . . . . . 1 . . . Special Weapon 12 | . 1 . . 3 1 . 3 1 . . . . . . 1 . . . 1 1 . . . . Impact Weapon . | . . . . . . . . . . . . . . . . . . . . . . . . . Slashing Weapon 4 | . . . 1 . . . . . 1 . . . . . . . . . . . . . 2 . Piercing Weapon 2 | . . . . . . . . . . . . . 2 . . . . . . . . . . . Special Melee Weapon . | . . . . . . . . . . . . . . . . . . . . . . . . . Unidentified Prototypes 41 | . . . 1 . 1 . 1 8 1 1 . . 7 . 2 . 2 . . 1 . 2 8 6 Parts Lost 34 | . 1 5 . 5 . . . . . 7 . . . . 2 . 2 1 . . . 3 . 8 Power 1 | . . . . 1 . . . . . . . . . . . . . . . . . . . . Propulsion 10 | . . 3 . 2 . . . . . 1 . . . . . . . . . . . 1 . 3 Utility 16 | . 1 . . 1 . . . . . 5 . . . . 1 . 2 . . . . 1 . 5 Weapon 7 | . . 2 . 1 . . . . . 1 . . . . 1 . . 1 . . . 1 . . Highest Loss Streak 3 | . 1 3 . 3 . . . . . 3 . . . . 1 . 1 1 . . . 2 . 3 To Critical Strikes . | . . . . . . . . . . . . . . . . . . . . . . . . . Average Backups 12 | 3 11 12 26 10 7 6 7 4 9 8 9 9 9 9 9 9 9 8 8 9 9 8 8 8 Power . | . 1 . . . . . . . . . . . . . . . . . . . . . . . Propulsion 1 | 2 4 2 3 1 . . . . . 1 2 1 . 1 1 1 . . . . . . . . Utility 5 | . 3 3 10 3 3 3 3 2 6 3 5 5 5 6 5 4 4 3 3 3 4 3 3 2 Weapon 3 | . 2 5 7 1 . . . 1 2 1 2 2 2 2 2 3 3 4 4 4 3 3 2 1 Tool/Special . | . . . . . . . . . . . . . . . . . . . . . . . . . Unused Backups 45 | . 3 13 4 11 . . . 1 . 2 . . 3 . 1 . 1 . . . . . 2 4 Power 3 | . . . 1 . . . . . . 1 . . 1 . . . . . . . . . . . Propulsion 5 | . 1 1 1 1 . . . . . . . . 1 . . . . . . . . . . . Utility 13 | . 1 3 . 4 . . . . . 1 . . 1 . 1 . 1 . . . . . 1 . Weapon 19 | . 1 9 2 5 . . . 1 . . . . . . . . . . . . . . 1 . Tool/Special 5 | . . . . 1 . . . . . . . . . . . . . . . . . . . 4 Average Slot Usage (%) 83 | . 99 86 85 78 62 70 71 67 76 80 80 80 80 85 85 86 87 86 85 85 90 84 93 86 Engine 6 | . 14 13 14 7 . 4 5 . . . . . . . . . . . . . . . . . Core 2 | . . . . 2 5 5 5 5 5 5 5 5 5 5 4 4 4 4 4 4 4 4 4 4 Reactor 1 | . . . . . . . . 4 5 5 5 5 5 5 4 4 4 4 4 4 4 4 4 4 Wheel 10 | . 16 27 28 3 . . . . . . . . . . . . . . . . . . . . Flight 11 | . . . . 20 16 16 16 16 21 19 20 20 20 20 18 18 18 23 23 23 23 22 22 19 Device 9 | . 13 . . 9 11 11 11 8 10 16 15 15 13 9 16 18 17 19 19 19 19 17 18 18 Storage 6 | . 14 7 14 4 5 5 5 . 5 5 5 5 5 5 4 4 4 4 4 4 4 4 4 5 Processor 5 | . . . . 4 5 5 5 10 11 6 5 5 7 10 9 9 10 14 14 14 14 13 13 14 Hackware 3 | . . . . 6 . . . . . 8 10 10 7 5 6 9 8 4 4 4 4 8 9 3 Protection 5 | . . 8 . 4 10 11 11 12 5 5 5 5 6 10 8 4 4 4 4 4 4 4 4 4 Energy Gun 1 | . 14 4 . . . . . . . . . . . . . . . . . . . . . . Energy Cannon 4 | . . 9 14 . . . . . . . . . . . . . . . . . . . . . Ballistic Gun 1 | . 12 5 . . . . . . . . . . . . . . . . . . . . . . Special Weapon 4 | . 1 8 6 4 1 5 4 1 4 2 5 5 3 5 3 4 4 1 . . 3 1 . . Slashing Weapon 4 | . . . 7 5 5 5 5 4 5 6 5 5 4 5 4 4 4 4 4 4 4 4 3 3 Peak Build Rating 180 | 7 11 21 27 81 87 91 95 102 109 115 115 115 152 143 165 165 165 151 152 151 154 166 180 179 Average Rating 79 | 5 9 14 23 63 84 90 91 94 103 111 115 114 136 142 159 164 160 147 146 146 151 158 172 162 On Entrance 106 | . 7 11 21 27 75 87 91 93 97 102 115 115 115 143 142 162 164 159 146 147 151 151 160 179 Avg Prop Armor Cover (%) 3 | . 5 1 . 4 . . . . . . . . . . . . . . . . . . . . Naked Turns . | . . . . . . . . . . . . . . . . . . . . . . . . . Heaviest Build 237 | 15 32 213 216 237 38 42 42 47 48 52 49 49 67 49 52 53 52 37 36 37 47 37 39 39 Greatest Support 70 | 32 40 40 26 70 48 48 48 48 55 55 53 53 55 55 55 55 55 39 39 39 39 47 45 45 Greatest Overweight (x) 8 | . 1 8 8 5 . . . . . . . . 1 . . . 1 . . . 1 . . 1 Average Overweight (x) . | . . 2 8 . . . . . . . . . . . . . . . . . . . . . Largest Inventory Capacity 35 | 8 15 35 35 35 10 10 10 10 10 10 10 10 10 10 10 10 10 10 10 10 10 10 10 10 Average Capacity 15 | 7 11 17 35 12 10 10 10 5 10 10 10 10 10 10 10 10 10 10 10 10 10 10 10 10 Most Carried 35 | 8 15 35 35 34 10 10 10 10 10 10 10 10 10 9 10 9 10 9 10 10 10 10 10 10 Average Carried 14 | 4 11 15 33 11 9 9 9 4 10 9 10 9 9 9 9 9 9 9 9 9 10 9 9 8 Final Capacity 35 | 8 15 35 35 10 10 10 10 10 10 10 10 10 10 10 10 10 10 10 10 10 10 10 10 10 Final Carried 35 | 8 15 35 35 10 10 10 10 10 10 10 10 10 9 9 9 9 8 9 10 10 10 10 10 10 Scrap Suit Usage (%) 1 | . . . . 14 . . . . . . . . . . . . . . . . . . . . Parts Cannibalized 1 | . . . . 1 . . . . . . . . . . . . . . . . . . . . Class Distribution -------------------- 25% | Hauler-Mutant 24% | Hacker-Sprinter 16% | Sprinter 14% | Mutant 6% | Hacker-Scout Dominant Class ---------------- Mutant | -10/Materials Mutant | -10/Subcaves Hauler-Mutant | -8/Scraptown Sprinter | -6/Factory Sprinter | -6/Lower Caves Sprinter | -6/Lower Caves Sprinter | -6/Zion Sprinter | -6/Deep Caves Sprinter | -5/Proximity Caves Hacker-Scout | -5/Factory Hacker-Scout | -5/Upper Caves Hacker-Scout | -5/Upper Caves Commander-Mutant | -5/Warlord Sprinter | -4/Proximity Caves Sprinter | -4/Factory Sprinter | -4/Waste Hacker-Sprinter | -4/Factory Hacker-Sprinter | -4/Upper Caves Hacker-Sprinter | -4/Upper Caves Hacker-Sprinter | -4/Zhirov Hacker-Sprinter | -3/Proximity Caves Hacker-Sprinter | -3/Research Hacker-Sprinter | -3/Quarantine Hacker-Sprinter | -3/Protoforge Resources | -11 -10 -10 -8 -6 -6 -6 -6 -6 -5 -5 -5 -5 -5 -4 -4 -4 -4 -4 -4 -4 -3 -3 -3 -3 ----------- Run | Yrd Mat Sub Scr Fac Low Low Zio Dee Pro Fac Upp Upp War Pro Fac Was Fac Upp Upp Zhi Pro Res Qua Frg Matter Collected 5624 | 309 437 716 10 1031 70 40 70 230 80 498 60 10 170 10 616 . 377 56 85 . 98 214 362 75 Remotely . | . . . . . . . . . . . . . . . . . . . . . . . . . Salvage Created 8564 | 121 551 535 . 1302 23 187 . 304 . 1429 27 . 308 77 665 . 1247 86 . . 173 603 481 445 Parts 479 | 15 31 44 . 80 . 1 . 39 . 82 1 . 9 3 37 . 62 5 . . . 24 22 24 Haulers Intercepted 10 | . 1 . . 3 . . . . . 3 . . . . 1 . . . . . . 1 1 . Recyclers Shooed 2 | . 1 . . . . . . . . 1 . . . . . . . . . . . . . . Parts Field Recycled . | . . . . . . . . . . . . . . . . . . . . . . . . . Retrieved Matter . | . . . . . . . . . . . . . . . . . . . . . . . . . Parts Self-Destructed 38 | . . 10 . . . . . . . . 18 2 . 3 . . . 5 . . . . . . Prevented 3 | . . . . . 1 . . . 1 . . . . . . . . . 1 . . . . . Parts Restored . | . . . . . . . . . . . . . . . . . . . . . . . . . Kills | -11 -10 -10 -8 -6 -6 -6 -6 -6 -5 -5 -5 -5 -5 -4 -4 -4 -4 -4 -4 -4 -3 -3 -3 -3 ------- Run | Yrd Mat Sub Scr Fac Low Low Zio Dee Pro Fac Upp Upp War Pro Fac Was Fac Upp Upp Zhi Pro Res Qua Frg Combat Hostiles Destroyed 136 | . 14 15 . 19 . . . 9 . 21 1 . 15 1 9 . 17 1 . . . 2 6 6 Melee 78 | . . . . 18 . . . 4 . 18 1 . . . 9 . 14 1 . . . 2 6 5 Guns 21 | . 14 7 . . . . . . . . . . . . . . . . . . . . . . Cannons 13 | . . 7 . . . . . . . . . . 1 1 . . 3 . . . . . . 1 AOE 22 | . . . . . . . . 5 . 3 . . 14 . . . . . . . . . . . Classes Destroyed 23 | 2 5 2 . 5 1 . . 2 . . . . 6 . . . . . . . . . . . Worker 9 | . 1 . . 2 . . . . . 1 . . . . 1 . 3 . . . . 1 . . Builder 2 | . . . . 1 . . . . . . . . . . . . 1 . . . . . . . Tunneler 5 | 5 . . . . . . . . . . . . . . . . . . . . . . . . Hauler 10 | . 1 . . 3 . . . . . 3 . . . . 1 . . . . . . 1 1 . Recycler 6 | 1 . . . 1 . . . . . 1 . . . . . . 1 . . . . 2 . . Minesweeper 1 | . . . . . 1 . . . . . . . . . . . . . . . . . . . Operator 4 | . . . . 2 . . . . . 1 . . . . . . 1 . . . . . . . Drone 3 | . . . . 1 . . . . . . . . . . . . . . . . . . 2 . Watcher 20 | . 2 . . 5 . . . . . 3 . . . . 2 . 3 . . . . 2 2 1 Swarmer 33 | . 6 4 . 7 . . . . . 8 1 . 1 . 1 . 5 . . . . . . . Cutter 2 | . . . . 2 . . . . . . . . . . . . . . . . . . . . Saboteur 3 | . . . . . . . . . . . . . 3 . . . . . . . . . . . Grunt 21 | . 8 . . 1 . . . . . 2 . . 2 1 . . 2 . . . . . 1 4 Brawler 2 | . . . . . . . . . . . . . 1 . . . 1 . . . . . . . Duelist 1 | . . . . . . . . . . . . . 1 . . . . . . . . . . . Protector 1 | . . . . . . . . . . . . . 1 . . . . . . . . . . . Sentry 5 | . . 1 . . . . . . . . . . . . . . 2 1 . . . 1 . . Demolisher 2 | . . . . . . . . . . . . . 2 . . . . . . . . . . . Hunter 2 | . . . . . . . . . . . . . 2 . . . . . . . . . . . Programmer 42 | . . . . 8 . . . . . 11 . . 2 . 8 . 7 . . . . 1 3 2 Subdweller 10 | . . 10 . . . . . . . . . . . . . . . . . . . . . . Z-Technician 5 | . . . . . . . . 5 . . . . . . . . . . . . . . . . Z-Light 5 | . . . . . . . . 5 . . . . . . . . . . . . . . . . Assembled 3 | . . . . . . . . 3 . . . . . . . . . . . . . . . . Thug 1 | . . . . . . . . . . . . . 1 . . . . . . . . . . . Best Kill Streak 9 | 6 3 3 . 4 1 . . 5 . 6 1 . 8 1 3 . 9 1 . . . 2 3 3 Combat Bots Only 8 | . 3 3 . 3 . . . 3 . 6 1 . 8 1 2 . 6 1 . . . 1 3 3 Max Kills in Single Turn 3 | 1 2 1 . 1 1 . . 2 . 2 1 . 3 1 1 . 2 1 . . . 1 1 2 Gunslinging . | . . . . . . . . . . . . . . . . . . . . . . . . . Exploded 3 | . . . . . . . . 2 . 2 . . 3 . . . . . . . . . . . Melee 2 | . . . . 1 . . . 1 . 1 1 . . . 1 . 2 1 . . . 1 1 1 Uniques/NPCs Destroyed 1 | . . . . . . . . 1 . . . . . . . . . . . . . . . . Z-Imprinter (-6/Deep Caves) Combat | -11 -10 -10 -8 -6 -6 -6 -6 -6 -5 -5 -5 -5 -5 -4 -4 -4 -4 -4 -4 -4 -3 -3 -3 -3 -------- Run | Yrd Mat Sub Scr Fac Low Low Zio Dee Pro Fac Upp Upp War Pro Fac Was Fac Upp Upp Zhi Pro Res Qua Frg Hostile Shots Fired 663 | . 51 82 . 112 . 6 . 35 . 112 . 8 8 6 93 . 63 2 . . . 17 24 44 Missed 262 | . 14 22 . 43 . 3 . 18 . 37 . 5 1 3 43 . 29 1 . . . 9 16 18 Deflected 6 | . . . . . . . . . . . . . . . 2 . 2 . . . . 1 . 1 Hits 401 | . 37 60 . 69 . 3 . 17 . 75 . 3 7 3 50 . 34 1 . . . 8 8 26 Melee 4 | . . . . 3 . . . 1 . . . . . . . . . . . . . . . . Projectile 397 | . 37 60 . 66 . 3 . 16 . 75 . 3 7 3 50 . 34 1 . . . 8 8 26 AOE 1 | . . . . 1 . . . . . . . . . . . . . . . . . . . . Critical Strikes 20 | . . 1 . 5 . . . 1 . 4 . . 1 . 2 . 2 . . . . 1 . 3 Actively Blocked 6 | . . . . 1 . . . . . . . . . . . . 1 . . . . 1 . 3 Part Disruptions 4 | . . . . . . . . . . 2 . . . . . . 1 . . . . 1 . . Damage Taken 7635 | . 384 1032 . 1102 10 17 . 464 . 1498 . 73 78 35 1047 . 651 32 . . . 241 226 745 Core 1128 | . 67 129 . 225 10 . . . . 207 . . . . 111 . 70 9 . . . 6 44 250 Absorbed by Shields 89 | . . . . . . . . . . . . . 56 33 . . . . . . . . . . Redirected to Shielding 622 | . . . . 164 . . . 38 . 186 . . . 21 180 . 33 . . . . . . . Ignored by Resistances 4 | . . . . 4 . . . . . . . . . . . . . . . . . . . . Regen/Repaired (Parts) 576 | . . . . 183 . . . . . 140 . . 25 . . . 23 . . . . 205 . . Core Remaining (%) 71 | 100 . . 21 . . . . . 72 . . . . 79 . . . . . . 83 . . . Volleys Fired 255 | 13 62 138 . 17 . . . 8 . 2 . . 10 . . . . . . . . 3 . 2 Largest 2 | 2 2 2 . 1 . . . 1 . 1 . . 1 . . . . . . . . 1 . 1 Hottest 300 | 70 100 250 . 80 . . . . . . . . 20 . . . . . . . . 49 . 300 Shots Fired 363 | 26 114 181 . 17 . . . 8 . 2 . . 10 . . . . . . . . 3 . 2 Gun 215 | 26 107 82 . . . . . . . . . . . . . . . . . . . . . . Cannon 42 | . . 23 . 17 . . . . . . . . . . . . . . . . . . . 2 Launcher 13 | . . . . . . . . . . . . . 10 . . . . . . . . 3 . . Special 93 | . 7 76 . . . . . 8 . 2 . . . . . . . . . . . . . . Kinetic 113 | 13 54 46 . . . . . . . . . . . . . . . . . . . . . . Thermal 227 | 13 60 135 . 17 . . . . . . . . . . . . . . . . . . . 2 Explosive 11 | . . . . . . . . 6 . 2 . . . . . . . . . . . 3 . . Electromagnetic . | . . . . . . . . . . . . . . . . . . . . . . . . . Entropic 10 | . . . . . . . . . . . . . 10 . . . . . . . . . . . Robot Hit Streak 12 | 5 8 8 . . . . . 12 . . . . 2 . . . . . . . . . . . Robot Miss Streak 4 | 3 3 4 . . . . . . . . . . 1 . . . . . . . . . . . Penetration Max . | . . . . . . . . . . . . . . . . . . . . . . . . . Secondary Targets . | . . . . . . . . . . . . . . . . . . . . . . . . . Autonomous 10 | . . . . . . . . . . . . . 1 1 . . 5 . . . . . . 3 Shots Hit Robots 452 | 12 63 62 . 65 1 5 . 18 . 75 1 . 4 . 33 . 50 2 . . 4 20 19 18 Core Hits 209 | 7 30 20 . 30 . 2 . 18 . 30 1 . 19 1 12 . 20 1 . . 1 6 6 5 Critical Kills 1 | . . 1 . . . . . . . . . . . . . . . . . . . . . . Critical Parts Destroyed 1 | . . 1 . . . . . . . . . . . . . . . . . . . . . . Critical Strikes 36 | 1 3 6 . . . . . 2 . 10 . . 2 . 6 . 2 . . . . 2 2 . Burn 8 | 1 3 4 . . . . . . . . . . . . . . . . . . . . . . Meltdown 1 | . . 1 . . . . . . . . . . . . . . . . . . . . . . Destroy 1 | . . 1 . . . . . . . . . . . . . . . . . . . . . . Sever 4 | . . . . . . . . 2 . 2 . . . . . . . . . . . . . . Melee Attacks 690 | . . . . 154 5 8 4 25 5 141 1 6 16 2 72 . 77 10 11 . 20 48 58 27 Impact . | . . . . . . . . . . . . . . . . . . . . . . . . . Slashing 690 | . . . . 154 5 8 4 25 5 141 1 6 16 2 72 . 77 10 11 . 20 48 58 27 Piercing . | . . . . . . . . . . . . . . . . . . . . . . . . . Sneak Attacks 60 | . . . . 14 1 . . 6 . 13 1 . 2 . 5 . 7 . . . . 6 4 1 Combat Hostiles 15 | . . . . 3 . . . . . 3 1 . . . 2 . 2 . . . . 1 2 1 Follow-up Attacks 10 | . . . . 1 . . . . . 7 . . . . . . 2 . . . . . . . Martial Strikes 1 | . . . . . . . . . . . . . . . . . . . . . . . . 1 Damage Inflicted 29402 | 149 851 1155 . 3432 88 393 . 2311 . 4177 66 . 4272 84 2238 . 4046 194 . . 476 1775 1981 1714 Guns 1707 | 149 851 707 . . . . . . . . . . . . . . . . . . . . . . Cannons 1322 | . . 448 . . . . . . . . . . 99 84 . . 417 . . . . . . 274 Explosions 5532 | . . . . . . . . 1174 . 335 . . 3946 . . . . . . . . 77 . . Melee 20537 | . . . . 3432 88 393 . 915 . 3760 66 . 227 . 2238 . 3629 194 . . 476 1698 1981 1440 Ramming . | . . . . . . . . . . . . . . . . . . . . . . . . . Kinetic 866 | 74 420 372 . . . . . . . . . . . . . . . . . . . . . . Thermal 1289 | 75 431 783 . . . . . . . . . . . . . . . . . . . . . . Explosive 1586 | . . . . . . . . 1174 . 335 . . . . . . . . . . . 77 . . Electromagnetic . | . . . . . . . . . . . . . . . . . . . . . . . . . Impact . | . . . . . . . . . . . . . . . . . . . . . . . . . Slashing 20841 | . . . . 3432 88 393 . 1137 . 3842 66 . 227 . 2238 . 3629 194 . . 476 1698 1981 1440 Piercing . | . . . . . . . . . . . . . . . . . . . . . . . . . Entropic 3946 | . . . . . . . . . . . . . 3946 . . . . . . . . . . . Phasic 874 | . . . . . . . . . . . . . 99 84 . . 417 . . . . . . 274 Highest Corruption 6 | . . . . 6 6 6 6 . . 4 . . . . 1 1 4 4 4 4 4 3 3 3 Average Corruption 3 | . . . . 5 6 6 6 . . 2 . . . . 1 1 1 4 4 4 4 2 2 3 Corruption Purged 15 | . . . . . . . . . . 15 . . . . . . . . . . . . . . Corruption Blocked . | . . . . . . . . . . . . . . . . . . . . . . . . . Effects 200 | . . . . 75 7 12 1 . . 19 . . . . 6 . 19 3 12 2 12 14 12 6 Message Errors 51 | . . . . 22 2 2 1 . . 8 . . . . 2 . 4 1 4 . . . 2 3 Matter Fused 53 | . . . . 24 1 4 . . . 3 . . . . 4 . 6 1 1 1 1 3 1 3 Heat Flow Errors 28 | . . . . 5 1 2 . . . 1 . . . . . . 1 1 3 1 4 5 4 . Energy Discharges 24 | . . . . 8 1 1 . . . 2 . . . . . . 2 . 2 . 3 4 1 . Parts Rejected 1 | . . . . 1 . . . . . . . . . . . . . . . . . . . . Parts Fused 2 | . . . . . . . . . . . . . . . . . . . . . . 1 1 . Data Loss (minor) 23 | . . . . 8 2 3 . . . 2 . . . . . . 4 . 1 . 1 . 2 . Data Loss (major) 12 | . . . . 3 . . . . . 3 . . . . . . 2 . 1 . 2 . 1 . Alerts 6 | . . . . 4 . . . . . . . . . . . . . . . . 1 1 . . Overload Shots 3 | . . 3 . . . . . . . . . . . . . . . . . . . . . . Effects 1 | . . 1 . . . . . . . . . . . . . . . . . . . . . . Heat Surge 1 | . . 1 . . . . . . . . . . . . . . . . . . . . . . Overflow Damage 4437 | . . . . 339 62 53 . 303 . 429 . . 409 . 342 . 978 . . . 176 497 570 279 Projectiles 141 | . . . . . . . . 3 . . . . 66 . . . 72 . . . . . . . Explosions 408 | . . . . . . . . 63 . 2 . . 343 . . . . . . . . . . . Melee 3888 | . . . . 339 62 53 . 237 . 427 . . . . 342 . 906 . . . 176 497 570 279 Knockbacks . | . . . . . . . . . . . . . . . . . . . . . . . . . Impact . | . . . . . . . . . . . . . . . . . . . . . . . . . Kinetic . | . . . . . . . . . . . . . . . . . . . . . . . . . Secondary . | . . . . . . . . . . . . . . . . . . . . . . . . . Self-Inflicted Damage 58 | . . . . . . . . . . . . . . . . . . . . . . 58 . . Shots 1 | . . . . . . . . . . . . . . . . . . . . . . 1 . . Rammed . | . . . . . . . . . . . . . . . . . . . . . . . . . Targets Rammed . | . . . . . . . . . . . . . . . . . . . . . . . . . Kicked . | . . . . . . . . . . . . . . . . . . . . . . . . . Crushed . | . . . . . . . . . . . . . . . . . . . . . . . . . Highest Temperature 325 | 56 198 166 . 259 193 196 . 131 134 171 144 143 47 204 85 . 180 304 325 133 272 277 217 312 Average Temperature 50 | 25 42 47 . 46 98 98 . 53 57 35 43 29 12 93 28 . 36 64 80 67 120 92 107 168 Received Heat Transfer 732 | . 138 132 . 102 . . . 84 . 27 . . . . 39 . 99 9 . . . 9 9 84 Effects 2 | . . . . . . . . . . . . . . . . . . . 1 . 1 . . . Energy Bleed 1 | . . . . . . . . . . . . . . . . . . . . . 1 . . . Matter Decay 1 | . . . . . . . . . . . . . . . . . . . 1 . . . . . Siege Activations . | . . . . . . . . . . . . . . . . . . . . . . . . . Martial Activations . | . . . . . . . . . . . . . . . . . . . . . . . . . Shielding Activations . | . . . . . . . . . . . . . . . . . . . . . . . . . Robots Disrupted . | . . . . . . . . . . . . . . . . . . . . . . . . . Combat Hostiles . | . . . . . . . . . . . . . . . . . . . . . . . . . Robots Corrupted . | . . . . . . . . . . . . . . . . . . . . . . . . . Combat Hostiles . | . . . . . . . . . . . . . . . . . . . . . . . . . Parts Fried . | . . . . . . . . . . . . . . . . . . . . . . . . . Impact Corruptions . | . . . . . . . . . . . . . . . . . . . . . . . . . Robots Melted 1 | . . 1 . . . . . . . . . . . . . . . . . . . . . . Combat Hostiles 1 | . . 1 . . . . . . . . . . . . . . . . . . . . . . Parts Melted 11 | 2 1 4 . 2 . . . . . . . . 2 . . . . . . . . . . . Heat Transferred 3404 | 296 1332 1776 . . . . . . . . . . . . . . . . . . . . . . Parts Sabotaged . | . . . . . . . . . . . . . . . . . . . . . . . . . Parts Stolen . | . . . . . . . . . . . . . . . . . . . . . . . . . Parts Stripped . | . . . . . . . . . . . . . . . . . . . . . . . . . Power Chain Reactions . | . . . . . . . . . . . . . . . . . . . . . . . . . Alert | -11 -10 -10 -8 -6 -6 -6 -6 -6 -5 -5 -5 -5 -5 -4 -4 -4 -4 -4 -4 -4 -3 -3 -3 -3 ------- Run | Yrd Mat Sub Scr Fac Low Low Zio Dee Pro Fac Upp Upp War Pro Fac Was Fac Upp Upp Zhi Pro Res Qua Frg Maximum Alert Level 2 | . . . . 2 . . . . . 2 . . . . 2 . 1 . . . . . . . Low Security (%) 81 | 100 100 . . 78 . . . . . 54 . . . . 70 100 94 . . . . 100 100 100 Level 1 16 | . . . . 17 . . . . . 42 . . . . 23 . 5 . . . . . . . Level 2 2 | . . . . 3 . . . . . 3 . . . . 5 . . . . . . . . . Level 3 . | . . . . . . . . . . . . . . . . . . . . . . . . . Level 4 . | . . . . . . . . . . . . . . . . . . . . . . . . . Level 5 . | . . . . . . . . . . . . . . . . . . . . . . . . . High Security . | . . . . . . . . . . . . . . . . . . . . . . . . . Max Security . | . . . . . . . . . . . . . . . . . . . . . . . . . Peak Influence 417 | 10 132 . . 408 . . . . . 414 . . . . 417 172 250 . . . . 93 161 118 Initial 120 | . . . . . . . . . . . . . . . 37 112 120 . . . . . 32 74 Average 108 | 3 60 . . 131 . . . . . 192 . . . . 128 131 71 . . . . 18 41 71 Influence Increases 7124 | 30 421 100 . 1260 5 50 . . . 1255 270 75 684 140 830 60 843 20 . . 5 310 472 294 Destroy 0b10 Robot/C 2780 | . 280 100 . 520 . . . . . 440 160 20 360 20 280 . 340 20 . . . 40 80 120 Destroy 0b10 Robot/NC 325 | 30 20 . . 75 5 5 . . . 45 . . 10 . 25 . 45 . . . 5 30 25 5 Destroy Leader 558 | . 56 . . 164 . . . . . 102 20 . . . 66 . 86 . . . . 26 16 22 Allied During Kill 502 | . . . . 16 . . . . . 15 90 10 314 . 57 . . . . . . . . . Successful Hack 285 | . 17 . . 52 . . . . . 48 . . . . 40 . 42 . . . . 42 44 . Disable Machine 300 | . 30 . . 30 . . . . . . . . . . 90 . 15 . . . . 15 90 30 Destroy Structure 574 | . 3 . . 73 . . . . . 80 . . . . 122 . 30 . . . . 142 52 72 Partial Spotted 330 | . . . . 135 . . . . . 75 . . . . . 60 15 . . . . . 15 30 Lose Combat Pursuer 1470 | . 15 . . 195 . 45 . . . 450 . 45 . 120 150 . 270 . . . . 15 150 15 Influence Decreases 7039 | 30 325 196 . 856 261 198 . . . 909 289 400 276 490 570 208 895 140 . . 5 252 398 341 Entered New Map 1243 | . . 47 . . 151 29 . . . . 129 63 2 410 23 208 52 45 . . . . 26 58 Time Decay 4234 | 30 315 129 . 596 110 169 . . . 535 160 337 104 70 277 . 566 85 . . 5 242 291 213 Lost Part 280 | . 10 20 . 50 . . . . . 70 . . . . 20 . 20 10 . . . 10 . 70 Lost Ally 500 | . . . . 210 . . . . . 4 . . 170 10 100 . . . . . . . 6 . Purge Threat 782 | . . . . . . . . . . 300 . . . . 150 . 257 . . . . . 75 . Squads Dispatched 77 | . 1 . . 29 . . . . . 16 . . . . 10 . 8 . . . . 5 6 2 Investigation 34 | . . . . 14 . . . . . 8 . . . . 6 . 2 . . . . 1 2 1 Extermination 33 | . . . . 10 . . . . . 7 . . . . 4 . 5 . . . . 3 3 1 Reinforcement 7 | . 1 . . 2 . . . . . 1 . . . . . . 1 . . . . 1 1 . Assault . | . . . . . . . . . . . . . . . . . . . . . . . . . Garrison 3 | . . . . 3 . . . . . . . . . . . . . . . . . . . . Intercept . | . . . . . . . . . . . . . . . . . . . . . . . . . Searches Triggered . | . . . . . . . . . . . . . . . . . . . . . . . . . Construction Impeded . | . . . . . . . . . . . . . . . . . . . . . . . . . Haulers Reinforced 3 | . . . . . . . . . . 1 . . . . . . . . . . . 1 1 . Active Scanning Responses . | . . . . . . . . . . . . . . . . . . . . . . . . . Cargo Convoy Interrupts . | . . . . . . . . . . . . . . . . . . . . . . . . . Stealth | -11 -10 -10 -8 -6 -6 -6 -6 -6 -5 -5 -5 -5 -5 -4 -4 -4 -4 -4 -4 -4 -3 -3 -3 -3 --------- Run | Yrd Mat Sub Scr Fac Low Low Zio Dee Pro Fac Upp Upp War Pro Fac Was Fac Upp Upp Zhi Pro Res Qua Frg Distress Signals 15 | . . . . 2 . . . . . 6 . . 1 . 1 . 1 . . . . 1 3 . Communications Jammed 32 | . . . . . . . . . . . . . . . . . 25 . . . . . 6 1 Distress Signals 32 | . . . . . . . . . . . . . . . . . 25 . . . . . 6 1 Times Spotted 333 | . 22 14 . 46 . 3 . 56 . 53 4 3 33 7 17 1 37 1 . . . 7 14 15 Peak Tracking Total 40 | . 4 3 . 6 . 3 . 40 . 13 4 1 14 5 6 1 6 1 . . . 4 9 6 Tactical Retreats 48 | . 1 . . 11 . 2 . . . 9 . 3 . 2 5 . 8 . . . . 1 5 1 ECM-based Alert Blocks 5 | . . . . 5 . . . . . . . . . . . . . . . . . . . . Traps | -11 -10 -10 -8 -6 -6 -6 -6 -6 -5 -5 -5 -5 -5 -4 -4 -4 -4 -4 -4 -4 -3 -3 -3 -3 ------- Run | Yrd Mat Sub Scr Fac Low Low Zio Dee Pro Fac Upp Upp War Pro Fac Was Fac Upp Upp Zhi Pro Res Qua Frg Traps Triggered 9 | . . 2 . . . . . . . . . . . . 4 . 1 . . . . . . 2 Indirectly . | . . . . . . . . . . . . . . . . . . . . . . . . . Trap Hack Attempts . | . . . . . . . . . . . . . . . . . . . . . . . . . Triggered . | . . . . . . . . . . . . . . . . . . . . . . . . . Disarmed . | . . . . . . . . . . . . . . . . . . . . . . . . . Reprogrammed . | . . . . . . . . . . . . . . . . . . . . . . . . . Reused 1 | . . . . . . 1 . . . . . . . . . . . . . . . . . . Traps Extracted . | . . . . . . . . . . . . . . . . . . . . . . . . . Installed 1 | . . . . . . 1 . . . . . . . . . . . . . . . . . . Triggered 1 | . . . . . . 1 . . . . . . . . . . . . . . . . . . Most Traps Carried 4 | . . 1 1 1 4 3 2 . . . . . . . . . . . . . . . . . Machines | -11 -10 -10 -8 -6 -6 -6 -6 -6 -5 -5 -5 -5 -5 -4 -4 -4 -4 -4 -4 -4 -3 -3 -3 -3 ---------- Run | Yrd Mat Sub Scr Fac Low Low Zio Dee Pro Fac Upp Upp War Pro Fac Was Fac Upp Upp Zhi Pro Res Qua Frg Machines Disabled 30 | . 2 1 . 2 . . 3 . . . . . 3 . 6 . 1 . 1 . . 1 6 4 Max in Single Turn 2 | . 1 1 . 1 . . 1 . . . . . 2 . . . 1 . 1 . . 1 1 2 Garrison Access 6 | . . . . 2 . . . . . . . . . . . . 1 . . . . 2 1 . Machines Repaired . | . . . . . . . . . . . . . . . . . . . . . . . . . Machines Dismantled 3 | . . . . . . . 3 . . . . . . . . . . . . . . . . . Machines Sabotaged . | . . . . . . . . . . . . . . . . . . . . . . . . . Overloaded Fab Kills . | . . . . . . . . . . . . . . . . . . . . . . . . . Hacking | -11 -10 -10 -8 -6 -6 -6 -6 -6 -5 -5 -5 -5 -5 -4 -4 -4 -4 -4 -4 -4 -3 -3 -3 -3 --------- Run | Yrd Mat Sub Scr Fac Low Low Zio Dee Pro Fac Upp Upp War Pro Fac Was Fac Upp Upp Zhi Pro Res Qua Frg Machines Accessed 112 | . 7 1 2 26 . 1 1 . . 23 . . 2 . 9 . 11 . . 5 . 10 11 3 Terminals 56 | . 7 . . 10 . . . . . 14 . . . . 3 . 6 . . . . 6 7 3 Fabricators 8 | . . . . 4 . . . . . 3 . . . . 1 . . . . . . . . . Repair Stations 8 | . . . . 3 . . . . . 1 . . . . . . 2 . . . . 2 . . Recycling Units 14 | . . . . 5 . . . . . 4 . . . . 4 . 1 . . . . . . . Scanalyzers 8 | . . . . 2 . . . . . 1 . . . . 1 . 1 . . . . . 3 . Garrison Access 6 | . . . . 2 . . . . . . . . . . . . 1 . . . . 2 1 . Total Hacks 313 | . 19 1 7 82 . 1 3 . . 68 . . 5 . 22 . 34 . . 15 . 28 22 6 Successful 213 | . 9 1 7 58 . 1 3 . . 44 . . 5 . 13 . 16 . . 15 . 22 18 1 Failed 99 | . 10 . . 24 . . . . . 23 . . . . 9 . 18 . . . . 6 4 5 Catastrophic 11 | . . . . . . . . . . 4 . . . . 2 . 3 . . . . 1 . 1 Database Lockouts 1 | . . . . . . . . . . 1 . . . . . . . . . . . . . . Manual 129 | . 15 . . 33 . . . . . 43 . . . . 12 . 13 . . . . 7 4 2 Terminals 173 | . 19 . . 32 . . . . . 52 . . . . 13 . 21 . . . . 16 14 6 Fabricators 22 | . . . . 14 . . . . . 6 . . . . 2 . . . . . . . . . Repair Stations 31 | . . . . 12 . . . . . 4 . . . . . . 6 . . . . 9 . . Recycling Units 20 | . . . . 7 . . . . . 5 . . . . 6 . 2 . . . . . . . Scanalyzers 24 | . . . . 13 . . . . . 1 . . . . 1 . 2 . . . . . 7 . Garrison Access 11 | . . . . 4 . . . . . . . . . . . . 3 . . . . 3 1 . Terminal Hacks 81 | . 2 1 7 5 . 1 3 . . 14 . . 5 . 4 . 7 . . 15 . 7 9 1 Record 14 | . . . 6 . . . . . . . . . 4 . . . . . . 3 . . 1 . Part Schematic 12 | . . . . 2 . . 3 . . 2 . . . . . . . . . 4 . 1 . . Robot Analysis 10 | . . . . 1 . . . . . 1 . . . . . . 1 . . 4 . 2 1 . Prototype ID Bank 7 | . . . . . . . . . . 1 . . . . . . . . . 4 . 1 1 . Open Door 3 | . . . 1 . . 1 . . . . . . 1 . . . . . . . . . . . Branch Access Points 3 | . . . . . . . . . . 1 . . . . . . 1 . . . . 1 . . Machine Index 2 | . . . . . . . . . . . . . . . . . 1 . . . . 1 . . Terminal Index 3 | . . . . . . . . . . 1 . . . . 1 . 1 . . . . . . . Fabricator Index 2 | . . . . . . . . . . 1 . . . . 1 . . . . . . . . . Scanalyzer Index 1 | . . . . . . . . . . 1 . . . . . . . . . . . . . . Alert Level 2 | . . . . . . . . . . 1 . . . . 1 . . . . . . . . . Unreport Threat 7 | . . . . . . . . . . 2 . . . . 1 . 2 . . . . . 2 . Locate Traps 8 | . 2 . . . . . . . . 3 . . . . . . 1 . . . . . 1 1 Recall Extermination 3 | . . . . 1 . . . . . . . . . . . . . . . . . 1 1 . Registered Prototypes 1 | . . . . . . . . . . . . . . . . . . . . . . . 1 . Zone Layout 2 | . . . . 1 . . . . . . . . . . . . . . . . . . 1 . Proto ID Catalog 1 | . . 1 . . . . . . . . . . . . . . . . . . . . . . Fabricator Hacks 16 | . . . . 10 . . . . . 4 . . . . 2 . . . . . . . . . Load Schematic 9 | . . . . 6 . . . . . 2 . . . . 1 . . . . . . . . . Build 7 | . . . . 4 . . . . . 2 . . . . 1 . . . . . . . . . Repair Station Hacks 26 | . . . . 11 . . . . . 4 . . . . . . 3 . . . . 8 . . Scan Component 13 | . . . . 5 . . . . . 2 . . . . . . 2 . . . . 4 . . Repair 12 | . . . . 5 . . . . . 2 . . . . . . 1 . . . . 4 . . Refit 1 | . . . . 1 . . . . . . . . . . . . . . . . . . . . Recycling Unit Hacks . | . . . . . . . . . . . . . . . . . . . . . . . . . Scanalyzer 19 | . . . . 12 . . . . . . . . . . 1 . . . . . . . 6 . Insert Component 8 | . . . . 5 . . . . . . . . . . 1 . . . . . . . 2 . Analyze 7 | . . . . 5 . . . . . . . . . . . . . . . . . . 2 . Retrieve Study 4 | . . . . 2 . . . . . . . . . . . . . . . . . . 2 . Garrison Access Hacks 6 | . . . . 2 . . . . . . . . . . . . 1 . . . . 2 1 . Seal Access 6 | . . . . 2 . . . . . . . . . . . . 1 . . . . 2 1 . Unauthorized Hacks 65 | . 7 . . 18 . . . . . 22 . . . . 6 . 5 . . . . 5 2 . Terminals 51 | . 7 . . 12 . . . . . 19 . . . . 2 . 4 . . . . 5 2 . Track 6 | . . . . . . . . . . 4 . . . . . . 1 . . . . . 1 . Assimilate 10 | . . . . 1 . . . . . 4 . . . . . . 2 . . . . 3 . . Botnet 11 | . 1 . . 4 . . . . . 3 . . . . . . 1 . . . . 1 1 . Disrupt 1 | . . . . 1 . . . . . . . . . . . . . . . . . . . . Operators 4 | . 1 . . 1 . . . . . 1 . . . . 1 . . . . . . . . . Skim 19 | . 5 . . 5 . . . . . 7 . . . . 1 . . . . . . 1 . . Fabricators . | . . . . . . . . . . . . . . . . . . . . . . . . . Repair Stations . | . . . . . . . . . . . . . . . . . . . . . . . . . Recycling Units 14 | . . . . 6 . . . . . 3 . . . . 4 . 1 . . . . . . . Mask 1 | . . . . 1 . . . . . . . . . . . . . . . . . . . . Fedlink 9 | . . . . 3 . . . . . 2 . . . . 3 . 1 . . . . . . . Scrapoids 4 | . . . . 2 . . . . . 1 . . . . 1 . . . . . . . . . Scanalyzers . | . . . . . . . . . . . . . . . . . . . . . . . . . Garrison Access . | . . . . . . . . . . . . . . . . . . . . . . . . . Data Cores Recovered 2 | . . . . . . . . . . 1 . . . . . . 1 . . . . . . . Used 2 | . . . . . . . . . . 1 . . . . . . 1 . . . . . . . Hacking Detections 76 | . 7 . . 19 . . . . . 17 . . . . 4 . 11 . . . . 8 7 3 Full Trace Events 16 | . . . . 9 . . . . . 4 . . . . 1 . . . . . . 1 . 1 Feedback Events 3 | . . . . 2 . . . . . 1 . . . . . . . . . . . . . . Corruption 3 | . . . . 2 . . . . . 1 . . . . . . . . . . . . . . Feedback Blocked . | . . . . . . . . . . . . . . . . . . . . . . . . . Robot Schematics Acquired . | . . . . . . . . . . . . . . . . . . . . . . . . . Robots Built . | . . . . . . . . . . . . . . . . . . . . . . . . . Authchips . | . . . . . . . . . . . . . . . . . . . . . . . . . Time . | . . . . . . . . . . . . . . . . . . . . . . . . . Total Robot Build Rating . | . . . . . . . . . . . . . . . . . . . . . . . . . Part Schematics Acquired 17 | . . . . 6 . . 3 . . 2 . . . . . . . . . 4 . 1 1 . Parts Built 7 | . . . . 5 . . . . . 2 . . . . . . . . . . . . . . Authchips 2 | . . . . 2 . . . . . . . . . . . . . . . . . . . . Time 643 | . . . . 353 . . . . . 228 . . . . 62 . . . . . . . . . Total Part Build Rating 35 | . . . . 25 . . . . . 10 . . . . . . . . . . . . . . Part Studies Acquired 4 | . . . . 2 . . . . . . . . . . . . . . . . . . 2 . Parts Repaired 12 | . . . . 5 . . . . . 2 . . . . . . 1 . . . . 4 . . Time 479 | . . . . 196 . . . . . 106 . . . . . . 31 . . . . 146 . . Parts Recycled . | . . . . . . . . . . . . . . . . . . . . . . . . . Recycled Matter . | . . . . . . . . . . . . . . . . . . . . . . . . . Retrieved Matter . | . . . . . . . . . . . . . . . . . . . . . . . . . Retrieved Components . | . . . . . . . . . . . . . . . . . . . . . . . . . Parts Scanalyzed 5 | . . . . 4 . . . . . . . . . . . . . . . . . . 1 . Part Schematics Acquired 5 | . . . . 4 . . . . . . . . . . . . . . . . . . 1 . Parts Damaged . | . . . . . . . . . . . . . . . . . . . . . . . . . Bothacking | -11 -10 -10 -8 -6 -6 -6 -6 -6 -5 -5 -5 -5 -5 -4 -4 -4 -4 -4 -4 -4 -3 -3 -3 -3 ------------ Run | Yrd Mat Sub Scr Fac Low Low Zio Dee Pro Fac Upp Upp War Pro Fac Was Fac Upp Upp Zhi Pro Res Qua Frg Used RIF Installer . | . . . . . . . . . . . . . . . . . . . . . . . . . Robots Hacked . | . . . . . . . . . . . . . . . . . . . . . . . . . Non-combat . | . . . . . . . . . . . . . . . . . . . . . . . . . Combat . | . . . . . . . . . . . . . . . . . . . . . . . . . Robot Hacks Applied . | . . . . . . . . . . . . . . . . . . . . . . . . . Relay Couplers Released . | . . . . . . . . . . . . . . . . . . . . . . . . . Fabnet Peak Effective % . | . . . . . . . . . . . . . . . . . . . . . . . . . Robots Rewired 5 | . . . . . . . . . . . . . 5 . . . . . . . . . . . Allies Hacked 3 | . . . . 1 . . . . . . . . 1 . . . . . . . . . 1 . Hacks Repelled . | . . . . . . . . . . . . . . . . . . . . . . . . . Allies | -11 -10 -10 -8 -6 -6 -6 -6 -6 -5 -5 -5 -5 -5 -4 -4 -4 -4 -4 -4 -4 -3 -3 -3 -3 -------- Run | Yrd Mat Sub Scr Fac Low Low Zio Dee Pro Fac Upp Upp War Pro Fac Was Fac Upp Upp Zhi Pro Res Qua Frg Total Allies 34 | . . . . 11 . . 5 . . 7 . . 5 . 5 . . . . . . 1 . . Largest Group 10 | . . . . 5 . . 5 5 . 6 5 5 10 1 5 . . . . . . 1 1 . Highest-Rated Group 500 | . . . . 140 . . 124 124 . 245 235 233 500 64 227 . . . . . . 26 26 . Highest-Rated Ally 64 | . . . . 28 . . 31 31 . 47 47 47 64 64 47 . . . . . . 26 26 . Initial UFD Resources 69 | . . . . 23 33 33 33 33 37 37 48 48 48 52 52 65 65 67 67 67 69 69 69 69 Total Orders 26 | . . . . . . . . . . 1 . 4 3 . . . . . . . . 14 4 . STAY 14 | . . . . . . . . . . 1 . 2 2 . . . . . . . . 7 2 . FOLLOW 12 | . . . . . . . . . . . . 2 1 . . . . . . . . 7 2 . Ally Attacks 216 | . . . . 72 . . . 18 . 3 26 8 46 . 43 . . . . . . . . . Total Damage 4571 | . . . . 1263 . . . 232 . 99 598 143 1338 . 898 . . . . . . . . . Kills 30 | . . . . 8 . . . 2 . 1 7 1 5 . 6 . . . . . . . . . Allies Corrupted 1 | . . . . . . . . . . . . . 1 . . . . . . . . . . . Allies Melted 1 | . . . . . . . . . . . . . 1 . . . . . . . . . . . Intel | -11 -10 -10 -8 -6 -6 -6 -6 -6 -5 -5 -5 -5 -5 -4 -4 -4 -4 -4 -4 -4 -3 -3 -3 -3 ------- Run | Yrd Mat Sub Scr Fac Low Low Zio Dee Pro Fac Upp Upp War Pro Fac Was Fac Upp Upp Zhi Pro Res Qua Frg Active Infowar (turns) 14979 | 74 597 . . 2624 239 365 488 40 374 1939 323 824 253 137 1432 3 1752 257 490 52 578 883 822 433 Sensors 13285 | . . . . 2603 239 365 488 40 374 1700 323 824 249 137 1296 2 1547 239 490 50 578 663 698 380 Traps 2939 | . . . . 282 . . . . . 1773 323 561 . . . . . . . . . . . . Seismic 671 | 74 597 . . . . . . . . . . . . . . . . . . . . . . . Cloaking 6034 | . . . . . . . . . . . . . 4 . 1362 3 1223 257 490 42 578 880 817 378 Jamming 730 | . . . . . . . . . . . . . . . . . 70 17 . 6 . 217 89 331 ECM 70 | . . . . 70 . . . . . . . . . . . . . . . . . . . . Robot Analysis Total 10 | . . . . 1 . . . . . 1 . . . . . . 1 . . 4 . 2 1 . Derelict Logs Recovered 22 | . . 3 5 . 3 1 1 . 2 . 1 3 . 1 . . . 1 1 . . . . . Drone Launches . | . . . . . . . . . . . . . . . . . . . . . . . . . Drone Recoveries . | . . . . . . . . . . . . . . . . . . . . . . . . . Exploration | -11 -10 -10 -8 -6 -6 -6 -6 -6 -5 -5 -5 -5 -5 -4 -4 -4 -4 -4 -4 -4 -3 -3 -3 -3 ------------- Run | Yrd Mat Sub Scr Fac Low Low Zio Dee Pro Fac Upp Upp War Pro Fac Was Fac Upp Upp Zhi Pro Res Qua Frg Turns Passed 27876 | 141 950 5412 4691 3392 239 365 488 973 377 2031 323 824 681 150 1432 14 1855 257 490 52 578 883 822 456 Spaces Moved 34486 | 79 604 3270 2225 5813 666 1041 983 2216 487 2986 764 1622 1060 385 1505 67 2006 570 751 155 907 1626 1941 757 Core 3 | 3 . . . . . . . . . . . . . . . . . . . . . . . . Treads 164 | . 122 42 . . . . . . . . . . . . . . . . . . . . . . Legs . | . . . . . . . . . . . . . . . . . . . . . . . . . Wheels 6277 | 76 482 3228 2225 266 . . . . . . . . . . . . . . . . . . . . Hover . | . . . . . . . . . . . . . . . . . . . . . . . . . Flight 28042 | . . . . 5547 666 1041 983 2216 487 2986 764 1622 1060 385 1505 67 2006 570 751 155 907 1626 1941 757 Fastest Speed 11 | 50 80 90 210 23 32 32 32 16 31 14 28 28 13 27 13 13 11 11 23 23 23 19 11 22 Average Speed 51 | 98 102 130 210 33 32 32 32 31 31 29 28 28 24 27 26 13 26 22 23 23 23 21 22 34 Slowest Speed 260 | 100 240 260 210 168 32 32 32 32 32 32 28 28 90 27 27 13 84 23 23 23 96 23 23 101 Overloaded Moves . | . . . . . . . . . . . . . . . . . . . . . . . . . Propulsion Burnouts . | . . . . . . . . . . . . . . . . . . . . . . . . . Robots Hopped 94 | . . . . 27 . . . . . 8 . . 2 . 5 . 15 . . . . 26 9 2 Potential Cave-ins 13 | . . . . . . . . . . . . . . . . . . . . . . . . 13 Cave-ins Triggered . | . . . . . . . . . . . . . . . . . . . . . . . . . Teleports 1 | . . . . . . . . . . . . . . . . . . . . . . . 1 . Exploration Rate (%) 63 | 4 87 87 92 59 78 88 82 85 55 51 70 94 76 57 20 78 35 52 61 60 77 28 91 25 Regions Visited 24 Branch Regions 17 Pre-discovered Areas 16 | . . 3 1 2 . . 4 . . 3 . 1 . 1 . . . . . 1 . . . . Known Exits Taken 19 | . 1 . . 1 1 1 1 1 1 1 1 1 1 1 . . 1 1 1 1 1 1 1 . Unknown Exits Taken 3 | 1 . 1 1 . . . . . . . . . . . . . . . . . . . . . Scrap Searched 39 | . . 13 6 . 3 2 4 . 1 . 3 1 . 3 . . . 2 1 . . . . . Spaces Dug 333 | . 1 . . 66 4 3 . 15 5 30 . 6 6 2 23 . 15 8 10 . 16 61 26 36 Terrain Destroyed 562 | . 1 . . 73 4 3 . 56 5 38 . 6 161 2 23 . 15 8 10 . 16 79 26 36 Melee 252 | . . . . 60 4 3 . 15 5 30 . 6 6 2 23 . 15 8 10 . 16 19 26 4 Projectile 46 | . 1 . . 13 . . . . . . . . . . . . . . . . . . . 32 AOE 264 | . . . . . . . . 41 . 8 . . 155 . . . . . . . . 60 . . Terrain Rammed . | . . . . . . . . . . . . . . . . . . . . . . . . . Walls Destroyed . | . . . . . . . . . . . . . . . . . . . . . . . . . Machines Disabled . | . . . . . . . . . . . . . . . . . . . . . . . . . Actions | -11 -10 -10 -8 -6 -6 -6 -6 -6 -5 -5 -5 -5 -5 -4 -4 -4 -4 -4 -4 -4 -3 -3 -3 -3 --------- Run | Yrd Mat Sub Scr Fac Low Low Zio Dee Pro Fac Upp Upp War Pro Fac Was Fac Upp Upp Zhi Pro Res Qua Frg Total 42971 | 113 798 4078 2250 6997 688 1060 1097 2449 701 3914 870 1982 1446 426 2428 70 3199 682 1050 170 1245 2054 2274 930 Wait 6662 | 6 87 506 . 884 . 8 64 120 205 716 106 351 270 39 828 2 1089 97 286 . 316 382 206 94 Move 34286 | 78 603 3269 2224 5759 665 1040 982 2215 486 2970 763 1621 1055 384 1495 66 1978 569 750 154 906 1578 1923 753 Hop 83 | . . . . 26 . . . . . 7 . . 2 . 5 . 12 . . . . 21 8 2 Pick Up 202 | 9 10 53 13 22 7 1 4 21 . 17 . 2 12 . 5 . 6 . . 3 . 1 15 1 Fast Attach 132 | 6 1 12 1 27 1 1 4 21 1 9 . . 7 . 1 . 3 . 1 3 . 10 17 6 Attach 74 | 1 . 3 . 20 2 . 1 6 . 14 . . 5 . 3 . 5 . . 2 . 3 5 4 Detach 29 | . . 2 . 10 1 . 1 3 . 1 . . 2 . . . . 1 1 . . 2 . 5 Swap 223 | . 29 46 . 37 . . 2 . 4 26 . 1 5 1 16 2 24 5 1 3 3 2 14 2 Drop 224 | . 6 38 12 36 7 1 8 30 . 15 . 1 18 . 3 . 7 . . 5 . 4 28 5 Fire 255 | 13 62 138 . 17 . . . 8 . 2 . . 10 . . . . . . . . 3 . 2 Melee 676 | . . . . 153 5 8 4 25 5 131 1 6 16 2 72 . 75 10 11 . 20 48 58 26 Ram . | . . . . . . . . . . . . . . . . . . . . . . . . . Kick . | . . . . . . . . . . . . . . . . . . . . . . . . . Crush . | . . . . . . . . . . . . . . . . . . . . . . . . . Escape Stasis 30 | . . . . . . . . . . . . . . . . . . . . . . . . 30 Rewire 44 | . . . . . . . . . . . . . 44 . . . . . . . . . . . Trap 1 | . . . . . . 1 . . . . . . . . . . . . . . . . . . Miscellaneous 50 | . . 11 . 6 . . 27 . . 6 . . . . . . . . . . . . . . Route ------- -11/Scrapyard -10/Materials (discovered 5 exits: *Mat x3 / *Min / *Sub) -10/Subcaves (discovered 4 exits: *Mat x2 / Rec / *Scr) -8/Scraptown (discovered 2 exits: *Fac x2) -6/Factory (discovered 6 exits: *Fac x4 / *Low x2) -6/Lower Caves -6/Lower Caves (discovered 2 exits: *Fac / *Zio) -6/Zion (discovered 2 exits: *Dee / [*Pro]) -6/Deep Caves -5/Proximity Caves -5/Factory (discovered 5 exits: *Fac x3 / *Upp x2) -5/Upper Caves -5/Upper Caves (discovered 2 exits: *Fac / *War) -5/Warlord -4/Proximity Caves -4/Factory (discovered 2 exits: *Res x2) -4/Waste -4/Factory (discovered 4 exits: *Upp x2 / Ext x2) -4/Upper Caves -4/Upper Caves (discovered 2 exits: *Res / *Zhi) -4/Zhirov -3/Proximity Caves -3/Research (discovered 4 exits: *Res / Arm / *Qua x2) -3/Quarantine (discovered 2 exits: *Sec / *Frg) -3/Protoforge (discovered 1 exit: *Res) History --------- Turn | Location | Event 14 | -11/Scrapyard | Discovered new exit (range 15) 142 | -11/Scrapyard | Entered Materials 291 | -10/Materials | Discovered new exit (range 6) 305 | -10/Materials | Build established: Mutant 345 | -10/Materials | Discovered new exit (range 14) 695 | -10/Materials | Identified exit to Materials 695 | -10/Materials | Identified exit to Mines 695 | -10/Materials | Identified exit to Subcaves 756 | -10/Materials | Learned location of 2 exits from Subcaves 849 | -10/Materials | Loaded intel: 2 recycling unit locations 879 | -10/Materials | Loaded intel: 28 trap records 901 | -10/Materials | Learned Storage interactive machine intel 1014 | -10/Materials | Learned location of 3 exits from Materials 1092 | -10/Materials | Entered Subcaves 1093 | -10/Subcaves | Approached by a straggling Scientist 1093 | -10/Subcaves | Identified exit to Materials 1094 | -10/Subcaves | Identified exit to Recycling 1099 | -10/Subcaves | Learned location of Zion (-6) 1113 | -10/Subcaves | Shifting Twisted Machinery released Sub. Monowheel 1236 | -10/Subcaves | Lost 3 parts (1n2w) 1363 | -10/Subcaves | A swath of the cavern ceiling suddenly collapsed 1616 | -10/Subcaves | Shifting Twisted Machinery released Multitool 2075 | -10/Subcaves | Shifting Twisted Machinery released Sub. Machine Gun 2076 | -10/Subcaves | Shifting Twisted Machinery released Sub. Shrapnel Launcher 2363 | -10/Subcaves | Curiously followed by a Cobbler waking with a query about "LVR3C" 2375 | -10/Subcaves | A swath of the cavern ceiling suddenly collapsed 2588 | -10/Subcaves | Scientist uncovered a shortcut to Scraptown 2775 | -10/Subcaves | Shifting Twisted Machinery released Humpback 2785 | -10/Subcaves | Shifting Twisted Machinery released Sub. Machine Gun 3106 | -10/Subcaves | Core integrity fell below 50% 4173 | -10/Subcaves | Learned location of Storage (-8) 4257 | -10/Subcaves | Visited 4L-MR0's lab 4772 | -10/Subcaves | Build established: Hauler-Mutant 4920 | -10/Subcaves | Found Prototype Device 4937 | -10/Subcaves | Found Meta Core 6504 | -10/Subcaves | Entered Scraptown 6750 | -8/Scraptown | Heard Great Nut preacher, LISTEN AND RECITE! 6912 | -8/Scraptown | Discovered new exit (range 5) 7107 | -8/Scraptown | Scanned Subdweller tech in exchange for log data 7111 | -8/Scraptown | Learned Factory emergency access door positions 7113 | -8/Scraptown | Learned location of 1 exit from Factory 7116 | -8/Scraptown | Learned location of 1 exit from Research 7118 | -8/Scraptown | Learned Factory interactive machine intel 7120 | -8/Scraptown | Learned Factory trap positions 7189 | -8/Scraptown | Visited SPCMW 7212 | -8/Scraptown | Visited Awakened 7533 | -8/Scraptown | Visited Symbiants 7561 | -8/Scraptown | Visited Artisan Demo Area 7653 | -8/Scraptown | Visited Comm Corps 7806 | -8/Scraptown | Visited UFD Registry 7806 | -8/Scraptown | Registered with UFD as "Pulseripper" 7836 | -8/Scraptown | Visited The Evicted 7865 | -8/Scraptown | Visited Cave Peace 8000 | -8/Scraptown | Visited Chapter 10 8153 | -8/Scraptown | Visited Abandonware Association 8180 | -8/Scraptown | Learned abandonware demo "REVENGE.EXE" 8180 | -8/Scraptown | Learned abandonware demo "POISON.EXE" 8340 | -8/Scraptown | Discovered new exit (range 5) 8403 | -8/Scraptown | Visited LU-1G1's Boring Crew 8468 | -8/Scraptown | Visited Supply Room 8533 | -8/Scraptown | Visited Supply Room 8583 | -8/Scraptown | Visited Sword Containment 8607 | -8/Scraptown | Found Prototype Slashing Weapon 8607 | -8/Scraptown | Identified Companion Sword 8695 | -8/Scraptown | Delivered Scrap Shield to a Scientist 8888 | -8/Scraptown | Visited Curators Association 8974 | -8/Scraptown | Visited Derelict Rescue Squad 8995 | -8/Scraptown | Found DRS Beacon 9034 | -8/Scraptown | Visited Scrap Suit Storage 9586 | -8/Scraptown | Found Scrap Suit 11078 | -8/Scraptown | Met Optimus 11078 | -8/Scraptown | Accepted into 0bPrime 11195 | -8/Scraptown | Entered Factory 11195 | -6/Factory | Evolved 8 slots: Power x1, Propulsion x3, Utility x4 11196 | -6/Factory | Identified exit to Lower Caves 11197 | -6/Factory | Loaded intel: 130 trap records 11199 | -6/Factory | Loaded intel: 54 interactive machine locations 11424 | -6/Factory | Garrison activated, responded to threat 11761 | -6/Factory | Fabricated Nuclear Pulse Array? 11915 | -6/Factory | Discovered new exit (range 8) 11917 | -6/Factory | Identified exit to Factory 11960 | -6/Factory | Repaired Multitool 11980 | -6/Factory | Discovered exit to Lower Caves (range 10) 12223 | -6/Factory | Build established: Sprinter 12228 | -6/Factory | Fabricated Adv. ECM Suite (x2) 12374 | -6/Factory | Fabricated Nuclear Pulse Array? 12785 | -6/Factory | Repaired Mak. Power Source? 12882 | -6/Factory | Attached Meta Core, gained temporary slots: Propulsion, Utility, Weapon 13235 | -6/Factory | Loaded intel: 8 recycling unit locations 13251 | -6/Factory | Learned location of Protoforge (-3) 13341 | -6/Factory | Build established: Hacker-Sprinter 13474 | -6/Factory | Fabricated Cld. Cesium-ion Thruster? 13670 | -6/Factory | Repaired Multitool? 13714 | -6/Factory | Discovered exit to Factory (range 15) 13744 | -6/Factory | Spotted B-75 Beast 13756 | -6/Factory | Scrapoid reinforcements arrived 13817 | -6/Factory | Learned location of 3 exits from Factory 13822 | -6/Factory | Lost 4 allies 13893 | -6/Factory | Learned Factory recycling unit intel 13957 | -6/Factory | Learned location of 2 exits from Proximity Caves 14051 | -6/Factory | Learned 4 Extension zone layouts 14097 | -6/Factory | Build established: Machinist-Sprinter 14121 | -6/Factory | Repaired Adv. Sensor Array 14166 | -6/Factory | Learned Extension stockpile data 14317 | -6/Factory | Scrapoids reinforcements arrived? 14390 | -6/Factory | Lost 5 allies 14394 | -6/Factory | Lost 3 parts (1p1n1w) 14544 | -6/Factory | Repaired Imp. Propulsion Shielding? 14587 | -6/Factory | Entered Lower Caves 14589 | -6/Lower Caves | UFD Scientist delivered a prototype 14591 | -6/Lower Caves | Found Prototype Protection 14591 | -6/Lower Caves | Identified Enh. Scrap Shield 14625 | -6/Lower Caves | Learned Factory garrison access intel 14672 | -6/Lower Caves | Encountered a Warlord checkpoint 14676 | -6/Lower Caves | Learned 8 Factory zone layouts 14709 | -6/Lower Caves | Build established: Sprinter 14730 | -6/Lower Caves | Learned 4 Factory zone layouts 14799 | -6/Lower Caves | Discovered new exit (range 8) 14802 | -6/Lower Caves | Identified exit to Lower Caves 14826 | -6/Lower Caves | Entered another Lower Caves area 14828 | -6/Lower Caves | Spotted B-75 Beast 14873 | -6/Lower Caves | Discovered exit to Factory (range 4) 14890 | -6/Lower Caves | Learned location of 1 exit from Factory 14984 | -6/Lower Caves | Attracted the attention of an 0b10 checkpoint 15148 | -6/Lower Caves | Discovered new exit (range 9) 15150 | -6/Lower Caves | Identified exit to Zion 15191 | -6/Lower Caves | Entered Zion 15219 | -6/Zion | System corruption cleaned by Quarantine Array 15232 | -6/Zion | Discovered new exit (range 13) 15233 | -6/Zion | Given the Hacking Drone Bay 15273 | -6/Zion | Learned location of Warlord (-5) 15300 | -6/Zion | Found Prototype Special Weapon 15300 | -6/Zion | Identified RU-N14's Throwing Claymores 15364 | -6/Zion | Learned location of Testing (-2) 15368 | -6/Zion | Gained Derelict followers 15539 | -6/Zion | Discovered new exit (range 3) 15539 | -6/Zion | Saw the warning signs outside the Deep Caves entrance 15572 | -6/Zion | Found RU-N14's Throwing Claymores 15576 | -6/Zion | Found RU-N14's Throwing Claymores 15582 | -6/Zion | Found RU-N14's Throwing Claymores 15614 | -6/Zion | Identified exit to Deep Caves 15679 | -6/Zion | Entered Deep Caves 15679 | -6/Deep Caves | Accompanied by 5 allies 15681 | -6/Deep Caves | Met 5H-AD0 15681 | -6/Deep Caves | Attached CPS modules to 5H-AD0 15841 | -6/Deep Caves | Attacked by Z-Imprinter 15843 | -6/Deep Caves | Attached CPS modules to Z-Imprinter 15852 | -6/Deep Caves | Destroyed Z-Imprinter 15866 | -6/Deep Caves | Found Prototype Device 15866 | -6/Deep Caves | Identified Zio. Metafield Generator 15870 | -6/Deep Caves | Found Prototype Protection 15870 | -6/Deep Caves | Identified Zio. Weapon Casing 15984 | -6/Deep Caves | Found Prototype Protection 15984 | -6/Deep Caves | Identified Zio. Heavy Carapace 16001 | -6/Deep Caves | Z-Facility disabled 16199 | -6/Deep Caves | Found Zio. Heavy Carapace 16289 | -6/Deep Caves | Discovered new exit (range 7) 16290 | -6/Deep Caves | Identified exit to Proximity Caves 16354 | -6/Deep Caves | Spotted Golem 16628 | -6/Deep Caves | Triggered Deep Caves wall 16628 | -6/Deep Caves | Spotted Assembler 16628 | -6/Deep Caves | Spotted Assembler 16628 | -6/Deep Caves | Found Prototype Slashing Weapon 16652 | -6/Deep Caves | Entered Proximity Caves 16666 | -5/Proximity Caves | Found DCF Scrap (12 items) 16669 | -5/Proximity Caves | Identified Longsword +1 17029 | -5/Proximity Caves | Entered Factory 17029 | -5/Factory | Evolved 2 slots: Utility x2 17030 | -5/Factory | Identified exit to Factory 17030 | -5/Factory | Identified exit to Upper Caves 17032 | -5/Factory | Loaded intel: 8 recycling unit locations 17033 | -5/Factory | Loaded intel: 4 garrison access locations 17066 | -5/Factory | Noticed UFD Elites at a Recycling Unit 17500 | -5/Factory | Lost 3 parts (1n2u) 17776 | -5/Factory | Build established: Scout 17923 | -5/Factory | Lost 3 parts (3u) 18127 | -5/Factory | Loaded intel: 8 recycling unit locations 18215 | -5/Factory | Central database locked down 18341 | -5/Factory | Fabricated Exp. Power Shielding? 18367 | -5/Factory | Learned Research terminal intel 18429 | -5/Factory | Learned 8 Testing zone layouts 18524 | -5/Factory | Learned Extension emergency access door positions 18555 | -5/Factory | Learned 4 Proximity Caves zone layouts 18617 | -5/Factory | Watched by a mysterious "MATRIX" hacker 18649 | -5/Factory | Loaded intel: 6 repair station locations 18685 | -5/Factory | Repaired Nuclear Pulse Array+ 18713 | -5/Factory | Learned location of Armory (-3) 18748 | -5/Factory | Repaired Imp. Reaction Control System 18894 | -5/Factory | Fabricated Exp. Propulsion Shielding? 19025 | -5/Factory | Scrapoids reinforcements arrived? 19060 | -5/Factory | Entered Upper Caves 19060 | -5/Upper Caves | Accompanied by 5 allies 19067 | -5/Upper Caves | Attracted the attention of an 0b10 checkpoint 19308 | -5/Upper Caves | Discovered new exit (range 14) 19312 | -5/Upper Caves | Identified exit to Upper Caves 19353 | -5/Upper Caves | Build established: Hacker-Scout 19383 | -5/Upper Caves | Entered another Upper Caves area 19383 | -5/Upper Caves | Accompanied by 5 allies 19387 | -5/Upper Caves | Discovered exit to Factory (range 16) 19408 | -5/Upper Caves | Encountered a Warlord checkpoint 19414 | -5/Upper Caves | Learned Factory stockpile data 19422 | -5/Upper Caves | Learned Factory stockpile data 19672 | -5/Upper Caves | Spotted B-75 Beast 19956 | -5/Upper Caves | Discovered new exit (range 10) 19960 | -5/Upper Caves | Identified exit to Warlord 20207 | -5/Upper Caves | Entered Warlord 20207 | -5/Warlord | Accompanied by 5 allies 20208 | -5/Warlord | Forged Quantum Companion 20223 | -5/Warlord | Discovered new exit (range 9) 20231 | -5/Warlord | Build established: Hacker-Sprinter 20426 | -5/Warlord | Warlord's base attacked by MAIN.C 20443 | -5/Warlord | Rebuked by Warlord 20475 | -5/Warlord | Found Prototype Piercing Weapon 20476 | -5/Warlord | Found Prototype Piercing Weapon 20477 | -5/Warlord | Identified Vortex Lance (x2) 20486 | -5/Warlord | Found Prototype Launcher 20513 | -5/Warlord | Found Prototype Device 20513 | -5/Warlord | Identified Exp. Focal Shield 20520 | -5/Warlord | Found Prototype Device 20520 | -5/Warlord | Identified Exp. Cloaking Device 20522 | -5/Warlord | Found Prototype Reactor 20525 | -5/Warlord | Found Prototype Processor 20525 | -5/Warlord | Identified Exp. Armor Integrity Analyzer 20529 | -5/Warlord | Found Prototype Hackware 20570 | -5/Warlord | Identified Vortex Catalyst Activator 20665 | -5/Warlord | Destroyed 8 combat bots 20776 | -5/Warlord | Warlord forces counterattacked 20862 | -5/Warlord | P-70 Sage assimilated allied 3H-1HL(g) 20868 | -5/Warlord | P-80 Master assimilated allied ET-48C(g) 20871 | -5/Warlord | Spotted Executioner 20872 | -5/Warlord | Attacked by Warlord forces 20872 | -5/Warlord | Spotted 5U-X2T(g) 20877 | -5/Warlord | Identified exit to Proximity Caves 20888 | -5/Warlord | Entered Proximity Caves 20888 | -4/Proximity Caves | Accompanied by 1 ally 20926 | -4/Proximity Caves | Lost 12 allies 21038 | -4/Proximity Caves | Entered Factory 21038 | -4/Factory | Evolved 2 slots: Utility x2 21039 | -4/Factory | Identified exit to Research 21056 | -4/Factory | Loaded intel: 8 recycling unit locations 21299 | -4/Factory | Build established: Sprinter 21825 | -4/Factory | Identified System Mapper 21926 | -4/Factory | Discovered exit to Research (range 7) 21964 | -4/Factory | Scrapoid reinforcements arrived 22104 | -4/Factory | Lost 3 allies 22115 | -4/Factory | Build established: Hacker-Sprinter 22470 | -4/Factory | Sucked down chute 22470 | -4/Factory | Entered Waste 22475 | -4/Waste | Spotted C-40 Crusher 22476 | -4/Waste | Spotted C-40 Crusher 22479 | -4/Waste | Discovered new exit (range 16) 22479 | -4/Waste | Spotted C-40 Crusher 22479 | -4/Waste | Spotted C-40 Crusher 22479 | -4/Waste | Spotted C-40 Crusher 22479 | -4/Waste | Spotted C-40 Crusher 22484 | -4/Waste | Identified exit to Factory 22484 | -4/Waste | Entered Factory 22785 | -4/Factory | Found Prototype Processor 22785 | -4/Factory | Identified Exp. Terrain Scan Processor 23577 | -4/Factory | Repaired Lrn. Sensor Array? 23798 | -4/Factory | Identified exit to Upper Caves 23798 | -4/Factory | Identified exit to Extension 24324 | -4/Factory | Loaded intel: 8 recycling unit locations 24339 | -4/Factory | Entered Upper Caves 24440 | -4/Upper Caves | Attracted the attention of an 0b10 checkpoint 24521 | -4/Upper Caves | Learned Research terminal intel 24578 | -4/Upper Caves | Discovered new exit (range 9) 24585 | -4/Upper Caves | Identified exit to Upper Caves 24596 | -4/Upper Caves | Entered another Upper Caves area 24601 | -4/Upper Caves | Acquired the password to a Derelict Tinkerer's latest research 24638 | -4/Upper Caves | Discovered exit to Research (range 10) 24941 | -4/Upper Caves | Learned Research terminal intel 25037 | -4/Upper Caves | Discovered new exit (range 14) 25063 | -4/Upper Caves | Identified exit to Zhirov 25086 | -4/Upper Caves | Entered Zhirov 25086 | -4/Zhirov | Discovered new exit (range 3) 25091 | -4/Zhirov | Met Zhirov 25095 | -4/Zhirov | Learned location of Quarantine (-3) 25097 | -4/Zhirov | Zhirov requested help retrieving the SGEMP Prototype 25103 | -4/Zhirov | Found Alien Artifact 25103 | -4/Zhirov | Identified Integrated Dissipator 25103 | -4/Zhirov | Installed Integrated Dissipator, increased core heat dissipation (+20) 25126 | -4/Zhirov | Found Alien Artifact 25136 | -4/Zhirov | Identified exit to Proximity Caves 25138 | -4/Zhirov | Entered Proximity Caves 25194 | -3/Proximity Caves | Spotted B-86 Titan 25715 | -3/Proximity Caves | Discovered exit to Research (range 3) 25716 | -3/Proximity Caves | Entered Research 25716 | -3/Research | Evolved 2 slots: Propulsion x1, Utility x1 25717 | -3/Research | Identified exit to Armory 25718 | -3/Research | Identified exit to Quarantine 25719 | -3/Research | Loaded intel: 25 terminal locations 25797 | -3/Research | Spotted B-86 Titan 25829 | -3/Research | Repaired Nuclear Pulse Array+ 26133 | -3/Research | Discovered new exit (range 16) 26409 | -3/Research | Repaired Cld. VTOL Module 26460 | -3/Research | Repaired Diametric Drive 26495 | -3/Research | Repaired Impulse Thruster Array 26599 | -3/Research | Entered Quarantine 26599 | -3/Quarantine | Accompanied by 1 ally 26606 | -3/Quarantine | Found Alien Artifact 26606 | -3/Quarantine | Identified Subatomic Replicator 26615 | -3/Quarantine | Forged Prototype Slashing Weapon 26674 | -3/Quarantine | Discovered new exit (range 5) 26675 | -3/Quarantine | Identified exit to Research 26711 | -3/Quarantine | Found Alien Energy Cannon 26720 | -3/Quarantine | Found Alien Slashing Weapon 26840 | -3/Quarantine | Identified Core Cannon 26940 | -3/Quarantine | Found Exp. Hacking Suite 26943 | -3/Quarantine | Targeted by mysterious "MATRIX" hacker 27024 | -3/Quarantine | Spotted Alpha 7 27087 | -3/Quarantine | Found Alien Artifact 27088 | -3/Quarantine | Found Alien Artifact 27090 | -3/Quarantine | Identified Hpw. Transdimensional Reconstructor (x2) 27090 | -3/Quarantine | Warped through subspace 27097 | -3/Quarantine | Found Prototype Processor 27100 | -3/Quarantine | Found Alien Artifact 27100 | -3/Quarantine | Identified Core Reset Matrix 27100 | -3/Quarantine | Identified Transdimensional Reconstructor 27100 | -3/Quarantine | Used Core Reset Matrix 27104 | -3/Quarantine | Detected hypermatrix surge 27104 | -3/Quarantine | Sensed 14 artifacts in vicinity 27320 | -3/Quarantine | Found Prototype Device 27320 | -3/Quarantine | Identified Exp. EM Disruption Field 27353 | -3/Quarantine | Found Hpw. Transdimensional Reconstructor 27358 | -3/Quarantine | Found Dimensional Node Initializer 27364 | -3/Quarantine | Found Hpw. Transdimensional Reconstructor 27377 | -3/Quarantine | Identified Exp. Targeting Computer 27411 | -3/Quarantine | Spotted Fortress 27418 | -3/Quarantine | Discovered new exit (range 6) 27418 | -3/Quarantine | Discovered new exit (range 7) 27419 | -3/Quarantine | Identified exit to Section 7 27419 | -3/Quarantine | Identified exit to Protoforge 27421 | -3/Quarantine | Entered Protoforge 27422 | -3/Protoforge | Sensed 2 artifacts in vicinity 27661 | -3/Protoforge | Discovered exit to Research (range 9) 27670 | -3/Protoforge | Initialized slip node 27763 | -3/Protoforge | Superfortress began startup sequence 27787 | -3/Protoforge | Found Prototype Device 27787 | -3/Protoforge | Identified Cep. Recoil Nullifier 27794 | -3/Protoforge | Found Prototype Storage 27794 | -3/Protoforge | Identified Cep. NT7 Matterbank 27811 | -3/Protoforge | Additional patrols dispatched to research labs 27838 | -3/Protoforge | Spotted Immortal 27839 | -3/Protoforge | Spotted Decapitator 27839 | -3/Protoforge | Spotted Decapitator 27839 | -3/Protoforge | Spotted Decapitator 27839 | -3/Protoforge | Spotted Decapitator 27845 | -3/Protoforge | Spotted Immortal 27845 | -3/Protoforge | Spotted Immortal 27850 | -3/Protoforge | Found Prototype Processor 27850 | -3/Protoforge | Identified Cep. Melee Reflex Suite 27852 | -3/Protoforge | Found Prototype Device 27852 | -3/Protoforge | Identified Cep. Weapon Articulator 27856 | -3/Protoforge | Found Prototype Device 27856 | -3/Protoforge | Identified Femtoactuators 27858 | -3/Protoforge | Found Prototype Device 27858 | -3/Protoforge | Identified Cep. Hypertargeting System 27861 | -3/Protoforge | Spotted V183-g 27861 | -3/Protoforge | Spotted V708-z 27861 | -3/Protoforge | Spotted V324-m 27872 | -3/Protoforge | Spotted V005-g 27877 | -3/Protoforge | Self-destructed Last Messages --------------- 27852_ Acquired Prototype Device. 27852_ Identified Cep. Weapon Articulator. 27854_ Discarded Broken Adv. Signal Interpreter. 27856_ Acquired Prototype Device. 27856_ Identified Femtoactuators. 27858_ Acquired Prototype Device. 27858_ Identified Cep. Hypertargeting System. 27859_ Discarded Cep. Hypertargeting System. 27872_ Martial strike on V183-g. 27873_ Diametric Drive destroyed. 27873_ Femtoactuators destroyed. [A new version of Cogmind is available, see F1 News page.] 27873_ Dropped Zio. Light DM Reactor. 27874_ V708-z suffers critical hit (Blast). 27874_ V708-z knocked back. 27875_ Research Cell breached. Superquantum Companion releases a shadow of itself that zips off towards V183-g. 27877_ Impulse Thruster Array+ destroyed. Map ----- +----------------------------------------------------+ | ?????????????????????????????????????????????????? | | ?????????????????????????????????????????????????? | | ?????????????????????????????????????????????????? | | ?????????????????????????????????????????????????? | | ?????????????????????????????????????????????????? | | ?????????????????????????????????????????????????? | | ?????????????????????????????????????????????????? | | ?????????????????????????????????????????????????? | | ?????????????????????????????????????????????????? | | ?????????????????????????????????????????????????? | | ?????????????????????????????????????????????????? | | ?????????????????????????????????????????????????? | | ?????????????????????????????????????????????????? | | ??????????????" ??? #?????????????????????????? | | ??????????????" ?? ?????????????????????????? | | ??????????????" ? ?????????????????????????? | | ?????????????##/V##""""#??####???????????????????? | | ?????????????#" "??"""#???????????????????? | | ?????????????#" ""#!!"#???????????????????? | | ?????????????## "! "#???????????????????? | | ?????????????#" " "#???????????????????? | | ?????????????#"" V "! "#???????????????????? | | ?????????????#"""" "!!"#???????????????????? | | ?????????????#"""" "!!"#???????????????????? | | ?????????????#"" V !%"#???????????????????? | | ?????????????#" @! "#???????????????????? | | ??????????????# V # !"#???????????????????? | | ??????????????### "" l####"""#???????????????????? | | ???????????????#" * #????###???????????????????? | | ???????????????#"!!" #??????????????????????????? | | ???????????????#" " #??????????????????????????? | | ???????????????#" l" #??????????????????????????? | | ???????????????#"!!" #??????????????????????????? | | ???????????????#"! " #??????????????????????????? | | ???????????????#" !" #??????????????????????????? | | ???????????????#"! " #??????????????????????????? | | ???????????????#"! #??????????????????????????? | | ???????????????#"""# #??????????????????????????? | | ???????????????##### #??????????????????????????? | | ???????????????????# #??????????????????????????? | | ???????????????????# #??????????????????????????? | | ???????????????????# #??????????????????????????? | | ???????????????????# #??????????????????????????? | | ???????????????????# #??????????????????????????? | | #################### ######?????????????????????? | | ??????????????? | | ??????????????? | | ??????????????? | | #####"#++###################+++####??????????????? | | ???# ["#????????????????????????????????????? | +----------------------------------------------------+ Best States ------------- Heat Dissipation 74 Energy Generation 39 Energy Capacity 580 Matter Stores 300 Matter Capacity 1050 Sight Range 16 Robot Scan Range 18 Terrain Scan Density 10 ECM Strength 2 Jamming Range 16 Cloak Strength 4 Additional Mass Support 12 Armor Coverage 1200 Resistance: EM 25 Power Shielding 90 Propulsion Shielding 90 Melee Speed Boost 50 Evasion (%) 79 Targeting Accuracy 30 Melee Accuracy 8 Armor Integrity Analysis 50 Recoil Reduction 2 Offensive Hacking 36 Defensive Hacking 14 Authchip Count 5 Item Schematics ----------------- Exp. Hacking Suite | -3/Quarantine | Scanalyzed Robot Schematics ------------------ None Fabricated ------------ Nuclear Pulse Array | x1 | -6/Factory | Authchip Adv. ECM Suite | x2 | -6/Factory | Authchip Nuclear Pulse Array | x1 | -6/Factory Cld. Cesium-ion Thruster | x1 | -6/Factory Exp. Power Shielding | x1 | -5/Factory Exp. Propulsion Shielding | x1 | -5/Factory Repaired ---------- Multitool | 3% | -6/Factory Mak. Power Source | 12% | -6/Factory Multitool | 13% | -6/Factory Adv. Sensor Array | 37% | -6/Factory Imp. Propulsion Shielding | 41% | -6/Factory Nuclear Pulse Array | 8% | -5/Factory Imp. Reaction Control System | 2% | -5/Factory Lrn. Sensor Array | 14% | -4/Factory Nuclear Pulse Array | 37% | -3/Research Cld. VTOL Module | 10% | -3/Research Diametric Drive | 60% | -3/Research Impulse Thruster Array | 58% | -3/Research Studied --------- Impulse Thruster Array | -3/Quarantine | Hacked Alien Tech Used ----------------- Integrated Dissipator Subatomic Replicator Core Cannon High-powered Transdimensional Reconstructor Core Reset Matrix Dimensional Node Initializer Achievements -------------- Ambidextrous Drive-By Fitting Room Friends Forever Myspace Physics Protects Professional Mechanic Challenges ------------ None Game ------ Seed SixLayeredPower Manual? 0 Play Time 09:31:07 Cumulative 743.5 hours Start 2026.07.17 @ 23:16:35 End 2026.07.18 @ 23:01:29 Sessions 15 Manual Loads 0 Difficulty Rogue Special Mode None Game No. 254 Rogue 250 Adventurer 4 Explorer 0 Win Type - Total 21 Types 9/2/6/0/0/0/2/2/0/0 Lore% 81 Gallery% 75 Achievement% 57 Wizard Run 0 Options --------- Layout 1 ASCII 0 Keyboard 0 Movement Arrows Keybinds 0 Fullscreen 1 Font 40/SmallcapsGlow Map View 50x40 Zoom Use 0% Tactical HUD 1 Map Filters NONE Filters NONE Steam 1 RUN: 47128ed3-54c2-4160-b868-e26476dcdf55